Cogmind - Beta 13 @@@ ROGUE MODE // 2024.04.29 @ 10:27:40 Player: Oldman Pu Result: Destroyed by Piercing Trap Performance ------------- Evolutions (0) 0 Regions Visited (2) 400 Robots Destroyed (23) 115 Value Destroyed (528) 528 Prototype IDs (3) 60 Alien Tech Used (0) 0 Bonus (0) 0 TOTAL SCORE: 1103 Bonus ------- None Cogmind --------- Core Integrity 0/250 Matter 294/300 Energy 249/250 System Corruption 1% Temperature Cool (0) Movement Rolling (145) Ox3 Location -10/Subcaves Parts ------- > --- POWER (1) -------- Ion Engine > --- PROPULSION (2) --- Compact Wheel > --- UTILITY (2) ------ Improved Heat Sink High-capacity Storage Unit > --- WEAPON (2) ------- Subdweller Laser Assault Rifle > --- INVENTORY (20) --- Light Ion Engine Light Ion Engine Light Ion Engine Wheel Armored Wheel Armored Wheel Armored Wheel Armored Wheel Heat Sink Improved Heat Sink Small Storage Unit High-capacity Matter Pod (147) Hacking Suite Medium Laser Particle Gun Particle Gun Assault Rifle Assault Rifle Assault Rifle Battle Rifle Peak State ------------ > --- POWER ------------ Ion Engine > --- PROPULSION ------- Wheel Wheel > --- UTILITY ---------- Improved Heat Sink High-capacity Storage Unit > --- WEAPON ----------- Assault Rifle Assault Rifle > --- INVENTORY -------- Light Ion Engine Light Ion Engine Light Ion Engine Armored Wheel Armored Wheel Armored Wheel Armored Wheel Heat Sink Improved Heat Sink Small Storage Unit High-capacity Matter Pod Hacking Suite Medium Laser Small Laser Particle Gun Particle Gun Assault Rifle Assault Rifle Assault Rifle Assault Rifle [Rating: 12] Favorites ----------- Power Ion Engine Engine Ion Engine Propulsion Wheel Wheel Wheel Utility High-capacity Storage Unit Device Improved Heat Sink Storage High-capacity Storage Unit Weapon Assault Rifle Energy Gun Particle Gun Ballistic Gun Assault Rifle Build | -11 -10 -10 ------- Run | Yrd Mat Sub Slots Evolved . | . . . Power . | . . . Propulsion . | . . . Utility . | . . . Weapon . | . . . Parts Attached 26 | 6 17 3 Power 3 | 1 2 . Engine 3 | 1 2 . Core . | . . . Reactor . | . . . Propulsion 9 | 2 7 . Treads . | . . . Leg . | . . . Wheel 9 | 2 7 . Hover . | . . . Flight . | . . . Utility 5 | 1 4 . Device 3 | . 3 . Storage 2 | 1 1 . Processor . | . . . Hackware . | . . . Protection . | . . . Artifact . | . . . Weapon 9 | 2 4 3 Energy Gun 4 | 1 2 1 Energy Cannon . | . . . Ballistic Gun 5 | 1 2 2 Ballistic Cannon . | . . . Launcher . | . . . Special Weapon . | . . . Impact Weapon . | . . . Slashing Weapon . | . . . Piercing Weapon . | . . . Special Melee Weapon . | . . . Unidentified Prototypes . | . . . Parts Lost 6 | . 3 3 Power 1 | . 1 . Propulsion 3 | . 2 1 Utility . | . . . Weapon 2 | . . 2 Highest Loss Streak 3 | . 2 3 To Critical Strikes 1 | . . 1 Average Slot Usage (%) 97 | . 99 86 Engine 13 | . 13 14 Wheel 25 | . 27 14 Device 14 | . 14 14 Storage 14 | . 14 14 Energy Gun 5 | . 4 10 Ballistic Gun 22 | . 23 17 Naked Turns . | . . . Heaviest Build 52 | 10 50 52 Greatest Support 26 | 20 26 26 Greatest Overweight (x) 4 | . 4 3 Average Overweight (x) 1 | . 1 2 Largest Inventory Capacity 20 | 8 20 20 Average Capacity 18 | 6 18 20 Most Carried 20 | 1 20 20 Average Carried 14 | . 13 19 Final Capacity 20 | 8 20 20 Final Carried 20 | 1 20 20 Class Distribution -------------------- 58% | Scavenger-Mutant 41% | Mutant Dominant Class ---------------- Scavenger-Mutant | -10/Materials Scavenger-Mutant | -10/Subcaves Resources | -11 -10 -10 ----------- Run | Yrd Mat Sub Matter Collected 882 | 209 546 127 Remotely . | . . . Salvage Created 906 | . 819 87 Parts 44 | . 42 2 Haulers Intercepted 1 | . 1 . Recyclers Shooed 2 | . 2 . Parts Field Recycled . | . . . Retrieved Matter . | . . . Parts Self-Destructed 5 | . . 5 Prevented . | . . . Kills | -11 -10 -10 ------- Run | Yrd Mat Sub Combat Hostiles Destroyed 11 | . 9 2 Guns 11 | . 9 2 Classes Destroyed 7 | . 6 1 Worker 3 | . 3 . Hauler 1 | . 1 . Recycler 4 | . 4 . Operator 1 | . 1 . Watcher 3 | . 3 . Grunt 9 | . 9 . Subdweller 2 | . . 2 Best Kill Streak 3 | . 3 1 Combat Bots Only 3 | . 3 1 Max Kills in Single Turn 1 | . 1 1 Gunslinging . | . . . Exploded . | . . . Melee . | . . . Uniques/NPCs Destroyed . | . . . Combat | -11 -10 -10 -------- Run | Yrd Mat Sub Hostile Shots Fired 73 | . 56 17 Missed 12 | . 8 4 Damage Taken 941 | . 597 344 Core 259 | . 157 102 Absorbed by Shields . | . . . Core Remaining (%) 100 | 100 . . Volleys Fired 81 | . 67 14 Largest 2 | . 2 2 Hottest 85 | . 85 80 Shots Fired 162 | . 134 28 Gun 162 | . 134 28 Cannon . | . . . Launcher . | . . . Special . | . . . Kinetic 119 | . 94 25 Thermal 43 | . 40 3 Explosive . | . . . Electromagnetic . | . . . Robot Hit Streak 12 | . 12 11 Robot Miss Streak 4 | . 4 1 Penetration Max . | . . . Secondary Targets 2 | . 1 1 Max Gunslinging Chain 1 | . 1 1 Shots Hit Robots 115 | . 95 20 Core Hits 44 | . 38 6 Critical Kills . | . . . Critical Parts Destroyed . | . . . Critical Strikes 2 | . 1 1 Burn 1 | . 1 . Destroy 1 | . . 1 Melee Attacks . | . . . Impact . | . . . Slashing . | . . . Piercing . | . . . Sneak Attacks . | . . . Combat Hostiles . | . . . Follow-up Attacks . | . . . Damage Inflicted 1367 | . 1119 248 Guns 1367 | . 1119 248 Cannons . | . . . Explosions . | . . . Melee . | . . . Ramming . | . . . Kinetic 999 | . 751 248 Thermal 368 | . 368 . Explosive . | . . . Electromagnetic . | . . . Impact . | . . . Slashing . | . . . Piercing . | . . . Highest Corruption 1 | . 1 1 Average Corruption 1 | . 1 1 Corruption Purged . | . . . Corruption Blocked . | . . . Effects 11 | . 10 1 Matter Fused 2 | . 2 . Heat Flow Errors 1 | . 1 . Energy Discharges 4 | . 4 . Data Loss (minor) 1 | . 1 . Data Loss (major) 2 | . 1 1 Alerts 1 | . 1 . Overload Shots . | . . . Overflow Damage . | . . . Projectiles . | . . . Explosions . | . . . Melee . | . . . Knockbacks . | . . . Impact . | . . . Kinetic . | . . . Secondary . | . . . Self-Inflicted Damage . | . . . Shots . | . . . Rammed . | . . . Targets Rammed . | . . . Kicked . | . . . Crushed . | . . . Highest Temperature 146 | . 146 . Average Temperature 28 | . 28 . Received Heat Transfer 405 | . 339 66 Siege Activations . | . . . Robots Corrupted . | . . . Combat Hostiles . | . . . Parts Fried . | . . . Impact Corruptions . | . . . Robots Melted . | . . . Combat Hostiles . | . . . Parts Melted 2 | . 2 . Heat Transferred 939 | . 939 . Parts Sabotaged . | . . . Parts Stolen . | . . . Parts Stripped . | . . . Power Chain Reactions . | . . . Alert | -11 -10 -10 ------- Run | Yrd Mat Sub Peak Influence 219 | . 219 . Initial . | . . . Average 93 | . 95 . Maximum Alert Level 1 | . 1 . Low Security (%) 94 | 100 94 . Level 1 5 | . 5 . Level 2 . | . . . Level 3 . | . . . Level 4 . | . . . Level 5 . | . . . High Security . | . . . Max Security . | . . . Squads Dispatched 3 | . 3 . Investigation 1 | . 1 . Extermination . | . . . Reinforcement 2 | . 2 . Assault . | . . . Garrison . | . . . Intercept . | . . . Searches Triggered . | . . . Construction Impeded . | . . . Haulers Reinforced . | . . . Active Scanning Responses . | . . . Cargo Convoy Interrupts . | . . . Stealth | -11 -10 -10 --------- Run | Yrd Mat Sub Distress Signals 3 | . 3 . Communications Jammed . | . . . Distress Signals . | . . . Times Spotted 24 | . 22 2 Peak Tracking Total 4 | . 4 2 Tactical Retreats 3 | . 3 . Traps | -11 -10 -10 ------- Run | Yrd Mat Sub Traps Triggered 4 | . 2 2 Indirectly . | . . . Trap Hack Attempts . | . . . Triggered . | . . . Disarmed . | . . . Reprogrammed . | . . . Reused . | . . . Traps Extracted . | . . . Installed . | . . . Triggered . | . . . Machines | -11 -10 -10 ---------- Run | Yrd Mat Sub Machines Disabled 1 | . 1 . Max in Single Turn 1 | . 1 . Machines Repaired . | . . . Machines Dismantled . | . . . Machines Sabotaged . | . . . Overloaded Fab Kills . | . . . Hacking | -11 -10 -10 --------- Run | Yrd Mat Sub Machines Accessed 8 | . 8 . Terminals 7 | . 7 . Fabricators . | . . . Repair Stations . | . . . Recycling Units 1 | . 1 . Scanalyzers . | . . . Garrison Access . | . . . Total Hacks 21 | . 21 . Successful 15 | . 15 . Failed 6 | . 6 . Catastrophic 1 | . 1 . Database Lockouts . | . . . Manual . | . . . Terminals 20 | . 20 . Fabricators . | . . . Repair Stations . | . . . Recycling Units 1 | . 1 . Scanalyzers . | . . . Garrison Access . | . . . Terminal Hacks 14 | . 14 . Record 7 | . 7 . Robot Analysis 1 | . 1 . Prototype ID Bank 2 | . 2 . Branch Access Points 1 | . 1 . Emergency Access Points 1 | . 1 . Locate Traps 1 | . 1 . Transport Status 1 | . 1 . Fabricator Hacks . | . . . Repair Station Hacks . | . . . Recycling Unit Hacks 1 | . 1 . Report Inventory 1 | . 1 . Scanalyzer . | . . . Garrison Access Hacks . | . . . Unauthorized Hacks . | . . . Terminals . | . . . Fabricators . | . . . Repair Stations . | . . . Recycling Units . | . . . Scanalyzers . | . . . Garrison Access . | . . . Data Cores Recovered . | . . . Used . | . . . Hacking Detections 4 | . 4 . Full Trace Events . | . . . Feedback Events . | . . . Feedback Blocked . | . . . Robot Schematics Acquired . | . . . Robots Built . | . . . Authchips . | . . . Time . | . . . Total Robot Build Rating . | . . . Part Schematics Acquired . | . . . Parts Built . | . . . Authchips . | . . . Time . | . . . Total Part Build Rating . | . . . Parts Repaired . | . . . Time . | . . . Parts Recycled . | . . . Recycled Matter . | . . . Retrieved Matter . | . . . Retrieved Components . | . . . Parts Scanalyzed . | . . . Part Schematics Acquired . | . . . Parts Damaged . | . . . Bothacking | -11 -10 -10 ------------ Run | Yrd Mat Sub Used RIF Installer . | . . . Robots Hacked . | . . . Non-combat . | . . . Combat . | . . . Robot Hacks Applied . | . . . Relay Couplers Released . | . . . Fabnet Peak Effective % . | . . . Robots Rewired . | . . . Allies Hacked . | . . . Hacks Repelled . | . . . Allies | -11 -10 -10 -------- Run | Yrd Mat Sub Total Allies . | . . . Largest Group . | . . . Highest-Rated Group . | . . . Highest-Rated Ally . | . . . Total Orders . | . . . Ally Attacks . | . . . Total Damage . | . . . Kills . | . . . Allies Corrupted . | . . . Allies Melted . | . . . Intel | -11 -10 -10 ------- Run | Yrd Mat Sub Robot Analysis Total 1 | . 1 . Derelict Logs Recovered 2 | . . 2 Drone Launches . | . . . Drone Recoveries . | . . . Exploration | -11 -10 -10 ------------- Run | Yrd Mat Sub Turns Passed 1778 | 29 1454 295 Spaces Moved 979 | 27 795 157 Core 8 | 8 . . Treads . | . . . Legs . | . . . Wheels 971 | 19 795 157 Hover . | . . . Flight . | . . . Fastest Speed 50 | 50 80 105 Average Speed 109 | 71 103 144 Slowest Speed 145 | 80 140 145 Overloaded Moves . | . . . Propulsion Burnouts . | . . . Robots Hopped . | . . . Cave-ins Triggered . | . . . Exploration Rate (%) 39 | 3 100 16 Regions Visited 2 Branch Regions 1 Pre-discovered Areas . | . . . Known Exits Taken . | . . . Unknown Exits Taken 2 | 1 1 . Scrap Searched . | . . . Spaces Dug . | . . . Terrain Destroyed . | . . . Melee . | . . . Projectile . | . . . AOE . | . . . Terrain Rammed . | . . . Walls Destroyed . | . . . Machines Disabled . | . . . Actions | -11 -10 -10 --------- Run | Yrd Mat Sub Total 1526 | 33 1297 196 Wait 414 | . 394 20 Move 977 | 26 794 157 Hop . | . . . Pick Up 19 | 1 16 2 Fast Attach 9 | 6 3 . Attach 4 | . 2 2 Detach 1 | . 1 . Swap 13 | . 12 1 Drop 8 | . 8 . Fire 81 | . 67 14 Melee . | . . . Ram . | . . . Kick . | . . . Crush . | . . . Escape Stasis . | . . . Rewire . | . . . Trap . | . . . Miscellaneous . | . . . Route ------- -11/Scrapyard -10/Materials (discovered 6 exits: [*Mat x3] / *Min x2 / [*Sub]) -10/Subcaves History --------- Turn | Location | Event 16 | -11/Scrapyard | Discovered new exit (range 16) 30 | -11/Scrapyard | Entered Materials 59 | -10/Materials | Identified exit to Mines 282 | -10/Materials | Discovered new exit (range 10) 315 | -10/Materials | Build established: Mutant 644 | -10/Materials | Discovered new exit (range 16) 985 | -10/Materials | Discovered new exit (range 16) 999 | -10/Materials | Core integrity fell below 50% 1000 | -10/Materials | Build established: Scavenger-Mutant 1477 | -10/Materials | Discovered new exit (range 8) 1484 | -10/Materials | Entered Subcaves 1530 | -10/Subcaves | Core integrity fell below 20% 1556 | -10/Subcaves | Lost 3 parts (1n2w) 1598 | -10/Subcaves | Shifting Twisted Machinery released Piercing Trap 1599 | -10/Subcaves | Shifting Twisted Machinery released Battle Rifle 1717 | -10/Subcaves | A swath of the cavern ceiling suddenly collapsed 1736 | -10/Subcaves | Learned location of 1 exit from Materials 1738 | -10/Subcaves | Learned Materials garrison access intel 1779 | -10/Subcaves | Destroyed by Piercing Trap Last Messages --------------- 01548_ G5-9KP(u) builds Twisted Machinery. 01579_ Acquired 10 matter. Piercing Trap falls loose from the Twisted Machinery. Battle Rifle falls loose from the Twisted Machinery. 01614_ System corrupted: Substantial component data lost. 01615_ Acquired 8 matter. 01616_ Acquired 10 matter. 01621_ Acquired Battle Rifle. 01622_ Acquired 6 matter. A swath of the cavern ceiling suddenly collapses. 01736_ Acquired derelict log, extracted data. Data stored: Materials exits (x1). 01738_ Acquired derelict log, extracted data. Data stored: Materials garrison access intel. 01747_ Triggered Piercing Trap. 01747_ Spikes shoot up from the floor. 01747_ Critical hit (Impale). 01779_ Triggered Piercing Trap. 01779_ Spikes shoot up from the floor. 01779_ Critical hit (Impale). Map ----- +----------------------------------------------------+ | ?????????????????????????????????????????????????? | | ?????????????????????????????????????????????????? | | ?????????????????????????????????????????????????? | | ?????????????????????????????????????????????????? | | ?????????????????????????????????????????????????? | | ?????????????????????????????????????????????????? | | ?????????????????????????????????????????????????? | | ?????????????????????????????????????????????????? | | ?????????????????????????????????????????????????? | | ?????????????????????????????????????????????????? | | ?????????????????????????????????????????????????? | | ?????????????????????????????????????????????????? | | ?????????????????????????????????????????????????? | | ???????????????????????????????? ???????????????? | | ??????????????????????????????? ????????????????? | | ??????????????????????????????? ##???????????????? | | ???????????????? ???????????? ##??????????????? | | ????????????????? ?????####### ##?????????????? | | ?????????????????? ????# ??????????????? | | ??????????????????# ??## ???????????????? | | ??????????????????# ## ????????????????? | | ??????????????????# # ??????????????????? | | ???????????????????# ^ ???????????????????? | | ????????????????????? ????????????????????? | | ?????????????????????## #?????????????????????? | | ??????????????????#### @ #????????####?##??????? | | ?????????????????## ##???????# ## ##?????? | | ?????????????????# #???????# #?????? | | ?????????????????# #??????## #?????? | | ?????????????????## ^ ##?????# #?????? | | ??????????????????## ####??# #?????? | | ???????????????????# #?## #?????? | | ???????????????????# ^### #?????? | | ???????????????????# ## #?????? | | ???????????????????# ## #?????? | | ???????????????????# #?## ## #?????? | | ???????????????????####???###### # #?????? | | ???????????????????????????????### #?????? | | ?????????????????????????????????# ## ####?????? | | ?????????????????????????????????# #?##????????? | | ????????????????????????????????## ###??????????? | | ??????????????????????????????### ##?????????? | | ?????????????????????????????## ##????????? | | ????????????????????????????## ##???????? | | ????????????????????????????# ### # #???????? | | ????????????????????????????# #?###"# ##??????? | | ????????????????????????????## "# ###""#""#??????? | | ????????????????????????????##"#""##"#""###??????? | | ???????????????????????????##"" #"""##"#????????? | | ???????????????????????????# " """"#""#????????? | +----------------------------------------------------+ Best States ------------- Heat Dissipation 39 Energy Generation 10 Energy Capacity 250 Matter Stores 300 Matter Capacity 300 Sight Range 16 Terrain Scan Density 10 Evasion (%) 50 Item Schematics ----------------- None Robot Schematics ------------------ None Fabricated ------------ Nothing Alien Tech Used ----------------- None Achievements -------------- None Challenges ------------ None Game ------ Seed MeleeIntegrityAnalyzer Manual? 0 Play Time 00:16:08 Cumulative 286.4 hours Start 2024.04.29 @ 09:55:57 End 2024.04.29 @ 10:27:40 Sessions 2 Manual Loads 0 Difficulty Rogue Special Mode None Game No. 231 Rogue 219 Adventurer 12 Explorer 0 Win Type - Total 1 Types 1/0/0/0/0/0/0/0/0 Lore% 33 Gallery% 51 Achievement% 37 Wizard Run 0 Options --------- Layout 1 ASCII 0 Keyboard 0 Movement Mouse Keybinds 0 Fullscreen 1 Font 32/SmallcapsGlow Map View 77x35 Zoom Use 0% Tactical HUD 1 Map Filters NONE Filters NONE Steam 1 RUN: 50ad3196-a07c-4aaf-9393-5ee5f69586fb